[Event "WALTON 40th BAN-ch U20 Girls 2022"]
[Site "Dhaka"]
[Date "2022.02.17"]
[Round "3.5"]
[White "Omnia Binta Yusuf, Lubaba"]
[Black "Tasfia, Tahsin Prima"]
[Result "1-0"]
[ECO "C64"]
[WhiteElo "1578"]
[BlackElo "1423"]
[Annotator "NA RC"]
[PlyCount "45"]
[EventDate "2022.02.15"]
[EventType "swiss"]
[EventCountry "BAN"]
[SourceTitle "playchess.com"]
[Source "ChessBase"]
[SourceQuality "1"]
[TimeControl "5400+30"]

1. e4 {[%emt 0:00:11]} e5 {[%emt 0:00:22]} 2. Nf3 {[%emt 0:00:11]} Nc6 {[%emt 0:00:20]} 3. Bb5 {[%emt 0:00:13]} Bc5 {[%emt 0:00:33]} 4. c3 {[%emt 0:00:43]} Nge7 {[%emt 0:01:29]} 5. O-O {[%emt 0:01:04]} d5 {[%emt 0:02:33]} 6. Nxe5 {[%emt 0:07:37]} O-O {[%emt 0:07:35]} 7. Bxc6 {[%emt 0:05:50]} Nxc6 {[%emt 0:03:10]} 8. Nxc6 {[%emt 0:00:24]} bxc6 {[%emt 0:00:26]} 9. d4 {[%emt 0:00:05]} Bb6 {[%emt 0:02:00]} 10. exd5 {[%emt 0:01:32]} cxd5 {[%emt 0:01:17]} 11. Qf3 {[%emt 0:04:18]} f5 {[%emt 0:08:48]} 12. Bf4 {[%emt 0:03:48]} c6 {[%emt 0:12:44]} 13. Qg3 {[%emt 0:05:23]} Rf7 {[%emt 0:14:58]} 14. Nd2 {[%emt 0:04:21]} Bc7 {[%emt 0:03:23]} 15. Bxc7 {[%emt 0:01:01]} Rxc7 {[%emt 0:03:50]} 16. Nf3 {[%emt 0:03:11]} a5 {[%emt 0:07:58]} 17. Rfe1 {[%emt 0:03:04]} Bd7 {[%emt 0:04:26]} 18. Qd6 {[%emt 0:04:33]} Qc8 {[%emt 0:07:22]} 19. Re7 {[%emt 0:03:35]} Raa7 {[%emt 0:05:30]} 20. Rae1 {[%emt 0:02:46]} c5 {[%emt 0:03:27]} 21. Rxg7+ {[%emt 0:01:33]} Kxg7 {[%emt 0:00:57]} 22. Re7+ {[%emt 0:00:05]} Kg8 {[%emt 0:00:45]} 23. Qh6 {[%emt 0:46:32]} 1-0

[Event "WALTON 40th BAN-ch U20 Girls 2022"]
[Site "Dhaka"]
[Date "2022.02.18"]
[Round "4.2"]
[White "Jannatul, Ferdous"]
[Black "Nusrat Jahan, Alo"]
[Result "1-0"]
[ECO "D02"]
[WhiteElo "1852"]
[BlackElo "1818"]
[Annotator "NA RC"]
[PlyCount "250"]
[EventDate "2022.02.15"]
[EventType "swiss"]
[EventCountry "BAN"]
[SourceTitle "playchess.com"]
[Source "ChessBase"]
[SourceQuality "1"]
[TimeControl "5400+30"]

{[%evp 8,250,14,6,20,-14,-2,-10,-15,-13,-4,-7,0,-8,10,1,2,2,14,16,34,17,27,24,18,29,175,157,173,141,144,150,224,207,233,203,208,194,189,204,231,32767,305,238,347,244,383,240,257,243,400,447,405,390,728,224,948,316,318,247,325,323,32767,295,327,262,251,180,32767,32767,32767,32767,32767,32767,32767,137,145,115,121,121,123,111,93,32767,32767,32767,32767,32767,0,0,95,32767,32767,32767,32767,0,0,32767,93,-207,0,0,68,129,32767,32767,32767,32767,390,448,522,624,526,611,622,435,764,553,702,510,531,685,891,552,939,1241,1290,1989,1430,1471,983,1650,5504,5691,4645,29937,29964,10700,29974,1241,6979,1149,12833,12833,1331,2462,12794,3142,3187,11954,12822,11461,12823,779,4631,1757,27999,27999,6412,11890,27999,0,27999,29975,29952,29937,29965,29965,29963,29971,29972,29970,29971,29971,27999,29975,29975,29976,29977,29977,29985,29981,29984,29983,29983,29984,29984,29985,29986,29987,29988,29987,29987,29984,29984,29984,29984,29979,29979,0,29984,29985,29984,-28000,8,0,8,0,0,0,-28000,0,-28000,-28000,-28000,8,8,-28000,-28000,-28000,93,-28000,-28000,-28000,93,122,27998,27998,27999,29969,29970,27996,27998,29975,27999,29973,29975,29980,29970,29981,29986,29987,27999,29988,27998]} 1. d4 {[%emt 0:02:58]} d5 {[%emt 0:00:11]} 2. Bf4 {[%emt 0:00:18]} Nf6 {[%emt 0:00:09]} 3. e3 {[%emt 0:00:15]} e6 {[%emt 0:00:13]} 4. Nf3 {[%emt 0:00:05]} Bd6 {[%emt 0:00:35]} 5. Bg3 {[%emt 0:00:02]} c5 {[%emt 0:00:31]} 6. c3 {[%emt 0:00:12]} Nc6 {[%emt 0:00:32]} 7. Bd3 {[%emt 0:00:07]} O-O {[%emt 0:00:20]} 8. Nbd2 {[%emt 0:00:20]} b6 {[%emt 0:01:47]} 9. Ne5 {[%emt 0:05:05]} Qc7 {[%emt 0:04:18]} 10. f4 {[%emt 0:01:02]} Ne8 {[%emt 0:10:22]} 11. O-O {[%emt 0:10:54]} f5 {[%emt 0:05:08]} 12. Bh4 {[%emt 0:04:01]} Be7 {[%emt 0:09:57]} 13. Bxe7 {[%emt 0:07:48]} Nxe7 {[%emt 0:00:44]} 14. Rf3 {[%emt 0:01:10]} Nf6 {[%emt 0:05:29]} 15. Rh3 {[%emt 0:01:26]} c4 {[%emt 0:07:24]} 16. Bc2 {[%emt 0:00:57]} Ng6 $2 {[%emt 0:06:13] [#]} (16... h6 $11 {and Black stays safe.}) 17. Nxg6 $1 {[%emt 0:08:08]} hxg6 {[%emt 0:00:36]} 18. Nf3 {[%emt 0:01:03]} Ng4 {[%emt 0:06:10]} 19. Qe2 {[%emt 0:03:13]} Bb7 {[%emt 0:05:27]} (19... Bd7 $142 20. Qe1 Qd8) 20. Rg3 {[%emt 0:03:02]} ({Don't play} 20. Ng5 $6 Qe7 $16) 20... Rf6 {[%emt 0:03:16]} 21. Ne5 {[%emt 0:03:28]} Nh6 {[%emt 0:06:24]} 22. Rxg6 {[%emt 0:01:32]} Rxg6 {[%emt 0:01:05]} 23. Nxg6 {[%emt 0:00:02]} Kh7 {[%emt 0:01:55]} 24. Ne5 {[%emt 0:01:25]} Nf7 {[%emt 0:03:44]} 25. g4 {[%emt 0:16:03]} g6 {[%emt 0:02:59]} 26. gxf5 {[%emt 0:03:19]} exf5 {[%emt 0:01:36]} 27. Qg2 {[%emt 0:07:39]} Nxe5 {[%emt 0:01:13]} 28. fxe5 {[%emt 0:00:02]} ({Don't do} 28. dxe5 Rh8) 28... Qd7 {[%emt 0:01:41]} (28... Rg8 {was necessary.} 29. Rf1 Bc8) 29. Rf1 {[%emt 0:00:38]} Rf8 {[%emt 0:01:22]} 30. Rf4 {[%emt 0:00:29]} Rf7 {[%emt 0:03:02]} (30... Qe7 $142 31. Qg3 Qg7 32. Rh4+ Kg8) 31. Qg5 $2 {[%emt 0:02:39]} (31. Rh4+ Kg8 32. Rh6) 31... Kg8 $2 {[%emt 0:01:49] [#]} (31... Qe7 32. Qg2 Rg7) 32. Kf1 $2 {[%emt 0:01:46]} (32. Bxf5 $1 {[%mdl 512]} Qe8 (32... Qe7 33. Qg4) 33. Kh1) 32... Rg7 {[%emt 0:01:07]} 33. Bd1 {[%emt 0:06:37]} a5 {[%emt 0:02:10]} 34. h4 {[%emt 0:00:18]} Bc8 {[%emt 0:00:47]} 35. Qf6 {[%emt 0:03:37]} b5 {[%emt 0:01:03]} 36. Bc2 {[%emt 0:03:21]} Qe7 {[%emt 0:02:25]} 37. Qxe7 {[%emt 0:01:31]} Rxe7 {[%emt 0:00:01]} 38. Rf2 {[%emt 0:00:33]} Rh7 {[%emt 0:00:28]} 39. Rf4 {[%emt 0:00:38]} b4 {[%emt 0:01:32]} 40. Ba4 {[%emt 0:00:47]} Kf7 {[%emt 0:01:43]} 41. Bc6 {[%emt 0:00:25]} Ke6 {[%emt 0:00:32]} 42. Kg2 {[%emt 0:01:00]} (42. Be8 $18) 42... Bd7 {[%emt 0:00:51] [#]} 43. Bxd7+ $1 {[%emt 0:00:14]} Rxd7 {[%emt 0:00:01]} 44. cxb4 {[%emt 0:01:11]} axb4 {[%emt 0:00:01]} 45. Rf2 {[%emt 0:00:39]} Ra7 {[%emt 0:00:27]} 46. b3 {[%emt 0:00:10]} c3 {[%emt 0:00:44]} 47. Rc2 {[%emt 0:00:46]} Ra8 {[%emt 0:02:13]} 48. Kg3 {[%emt 0:00:02]} Rh8 {[%emt 0:00:48]} 49. Rh2 {[%emt 0:00:44]} Rc8 {[%emt 0:00:05]} 50. Rc2 {[%emt 0:01:49]} Rh8 {[%emt 0:00:04]} 51. Rc1 {[%emt 0:00:00]} Ra8 {[%emt 0:00:21]} 52. Rc2 {[%emt 0:00:00]} Rh8 {[%emt 0:00:04]} (52... Rc8 $11) 53. Rh2 {[%emt 0:00:30] [#]} Rc8 $2 {[%emt 0:00:06]} (53... g5 $1 $19 54. h5 Rc8) 54. Rc2 {[%emt 0:00:26]} Rh8 {[%emt 0:00:04] [#]} (54... Kf7 $11) 55. a3 $1 {[%emt 0:00:49]} bxa3 {[%emt 0:00:20]} 56. Rxc3 {[%emt 0:00:03]} a2 {[%emt 0:00:01]} 57. Rc6+ {[%emt 0:00:04]} Kf7 {[%emt 0:00:52]} 58. Ra6 {[%emt 0:00:02]} Rb8 {[%emt 0:00:11]} 59. Rxa2 {[%emt 0:00:15]} Rxb3 {[%emt 0:00:06]} 60. Kf4 {[%emt 0:00:10]} Rb1 {[%emt 0:05:11]} 61. Ra5 {[%emt 0:00:56]} Rf1+ {[%emt 0:00:00]} 62. Kg3 {[%emt 0:00:17]} Re1 {[%emt 0:00:00]} 63. Kf2 {[%emt 0:00:36]} Rh1 {[%emt 0:00:00]} 64. Rxd5 {[%emt 0:00:21]} Rxh4 {[%emt 0:00:00]} 65. Ra5 {[%emt 0:00:20]} f4 {[%emt 0:00:00]} 66. exf4 {[%emt 0:00:22]} Rxf4+ {[%emt 0:00:00]} 67. Ke3 {[%emt 0:00:01]} g5 {[%emt 0:00:00]} 68. Ra1 {[%emt 0:01:16]} Ke6 {[%emt 0:00:00]} 69. Ra6+ {[%emt 0:00:35]} Kf7 {[%emt 0:00:29]} 70. d5 {[%emt 0:00:45]} Rb4 {[%emt 0:00:40]} 71. Rf6+ {[%emt 0:00:27]} Ke7 {[%emt 0:00:38]} 72. Rg6 {[%emt 0:00:29]} (72. d6+ $142 Kd7 73. Rf7+ Kc6 74. Rc7+ Kb6 75. Rc8 Rb3+ 76. Kd2 Rb2+ 77. Kc1) 72... g4 {[%emt 0:00:03]} 73. Kf2 {[%emt 0:01:14]} (73. d6+ $142 Kf7 74. Rh6 Rb3+ 75. Kf4 Rb4+ 76. Kf5 Rb5 77. Rf6+ Ke8 78. Ke6) 73... Re4 {[%emt 0:00:59]} 74. Rg7+ {[%emt 0:00:47]} (74. d6+ $142 Kd7 75. Rg7+ Ke8 76. Re7+ Kd8 77. Kg3) 74... Kf8 {[%emt 0:00:23]} 75. Rg5 {[%emt 0:00:02]} Ke7 {[%emt 0:02:02]} 76. Kg3 {[%emt 0:00:19]} Kf7 {[%emt 0:00:44]} 77. Kh4 {[%emt 0:01:07]} Kf8 {[%emt 0:01:08]} 78. e6 {[%emt 0:00:59]} Ke7 {[%emt 0:00:21]} 79. Rxg4 {[%emt 0:00:22]} Re5 {[%emt 0:00:33]} 80. Rg5 {[%emt 0:00:17]} (80. Rg7+ $142 Kf6 81. Rf7+ Kg6 82. Rd7 Kf6 83. Kg3 Re4 84. Kf3 Re5 85. Kf4) 80... Re1 {[%emt 0:00:14]} 81. Kh5 {[%emt 0:00:09]} (81. Rg7+ $142 Kf6 82. Rd7) 81... Kd6 {[%emt 0:00:30]} 82. Kg6 {[%emt 0:00:12]} Ke7 {[%emt 0:00:28]} 83. Kg7 {[%emt 0:00:39]} (83. Kh7 $142 Rh1+ 84. Kg8 Kf6 85. Rg7 Re1 86. d6 Rxe6 87. Rf7+ Ke5 88. d7) 83... Rf1 {[%emt 0:00:06]} 84. Kg6 $2 {[%emt 0:00:58]} (84. Kh7 {mates} Kd6 85. Rg7 Kxd5 86. e7 Re1 87. Kg8 Kd4 88. Kf7 Kd3 89. Rg3+ Kd2 90. Rg5) 84... Rf6+ {[%emt 0:00:06]} 85. Kh5 {[%emt 0:00:10]} Kd6 {[%emt 0:00:51]} 86. Kg4 {[%emt 0:00:37]} Rf1 {[%emt 0:00:42]} 87. Rf5 {[%emt 0:00:42]} Rg1+ {[%emt 0:00:12]} 88. Kh5 {[%emt 0:00:21]} Rg8 {[%emt 0:00:16]} 89. Rg5 {[%emt 0:00:21]} Rf8 {[%emt 0:00:12]} 90. Kg6 {[%emt 0:00:04]} Ke7 {[%emt 0:00:10]} 91. Rf5 {[%emt 0:00:58]} Rg8+ {[%emt 0:00:45]} 92. Kh7 {[%emt 0:00:19]} Rg1 {[%emt 0:01:37]} 93. Rf7+ {[%emt 0:00:03]} Ke8 {[%emt 0:00:08]} 94. Rd7 {[%emt 0:00:22]} Rd1 {[%emt 0:02:00]} 95. Kg6 {[%emt 0:00:18]} Rg1+ {[%emt 0:00:09]} 96. Kf6 {[%emt 0:00:03]} Rf1+ {[%emt 0:00:49]} 97. Ke5 {[%emt 0:00:02]} Re1+ {[%emt 0:00:16]} 98. Kd6 {[%emt 0:00:04]} Ra1 {[%emt 0:00:09]} 99. Rc7 {[%emt 0:00:22]} Ra6+ {[%emt 0:00:19]} 100. Rc6 {[%emt 0:00:11]} Ra8 {[%emt 0:00:05]} 101. e7 {[%emt 0:01:00]} Rb8 {[%emt 0:01:13]} 102. Ke6 {[%emt 0:00:13]} Rb6 {[%emt 0:00:04]} 103. Kd6 $2 {[%emt 0:00:39]} (103. Kf5 {mates} Rb1 104. d6 Kd7 105. Rc7+ Kxd6 {[#]} 106. e8=Q $1 {[%mdl 512]} Kxc7 107. Qe5+ Kc8 108. Qc5+ Kb7 109. Qd5+ Kc7 110. Qc4+ Kb6 111. Qd4+ Ka6 112. Qd3+ Rb5+ 113. Ke6) 103... Rb8 {[%emt 0:00:15]} 104. Rc7 {[%emt 0:00:57]} Rb6+ {[%emt 0:00:12]} 105. Ke5 $4 {[%emt 0:00:06]} Re6+ $1 {[%emt 0:00:08]} 106. Kd4 {[%emt 0:02:30]} Rxe7 {[%emt 0:00:08]} 107. Rc1 {[%emt 0:00:43]} Kd7 {[%emt 0:00:45]} 108. Kc5 {[%emt 0:00:17]} (108. Rb1 $5 {[%cal Rd4c5]}) 108... Re8 {[%emt 0:00:36]} 109. Rh1 {[%emt 0:00:42]} Re7 {[%emt 0:00:13]} 110. Rh6 {[%emt 0:00:13]} Rg7 {[%emt 0:00:45]} 111. Rd6+ {[%emt 0:00:19]} Kc7 {[%emt 0:00:16]} 112. Rc6+ {[%emt 0:00:08]} Kd7 {[%emt 0:00:06]} 113. Ra6 $16 {[%emt 0:00:14]} Rg1 {[%emt 0:00:35]} 114. Ra7+ {[%emt 0:00:03]} Kd8 {[%emt 0:00:12]} (114... Ke8 115. Kc6 Rc1+ 116. Kd6) 115. Kc6 {[%emt 0:00:23]} Rc1+ {[%emt 0:02:10]} (115... Rg6+ 116. d6 Ke8 117. Ra8+ Kf7 118. Kc7 Ke6 119. d7 Rg1 120. d8=Q Rc1+ 121. Kb6) 116. Kd6 {[%emt 0:00:07]} Ke8 $4 {[%emt 0:00:09]} (116... Kc8 117. Rh7 Rd1 118. Rh8+ Kb7 119. Rh7+ Kb8 120. Rh8+ Kb7 121. Rh7+ Kc8 122. Rh8+ Kb7) 117. Ra8+ {[%emt 0:00:12]} Kf7 {[%emt 0:00:05]} 118. Kd7 {[%emt 0:00:08]} Rc5 {[%emt 0:01:04]} 119. d6 {[%emt 0:00:22]} Rc1 {[%emt 0:00:08]} 120. Ra2 {[%emt 0:01:45]} Rf1 {[%emt 0:00:20]} 121. Rd2 {[%emt 0:00:53]} Rf3 {[%emt 0:00:29]} 122. Kd8 {[%emt 0:01:14]} Rc3 {[%emt 0:02:25]} 123. d7 {[%emt 0:00:13]} Ke6 {[%emt 0:00:34]} 124. Ke8 {[%emt 0:00:18]} Rh3 {[%emt 0:00:06]} 125. Re2+ {[%emt 0:00:06]} Kd5 {[%emt 0:01:28]} 1-0

[Event "WALTON 40th BAN-ch U20 Girls 2022"]
[Site "Dhaka"]
[Date "2022.02.18"]
[Round "4.3"]
[White "Jannatul, Ferdousi"]
[Black "Omnia Binta Yusuf, Lubaba"]
[Result "0-1"]
[ECO "A47"]
[WhiteElo "1609"]
[BlackElo "1578"]
[Annotator "NA RC"]
[PlyCount "70"]
[EventDate "2022.02.15"]
[EventType "swiss"]
[EventCountry "BAN"]
[SourceTitle "playchess.com"]
[Source "ChessBase"]
[SourceQuality "1"]
[TimeControl "5400+30"]

1. d4 {[%emt 0:00:04]} Nf6 {[%emt 0:01:42]} 2. Bf4 {[%emt 0:00:33]} e6 {[%emt 0:00:18]} 3. e3 {[%emt 0:00:30]} Be7 {[%emt 0:01:49]} 4. Nf3 {[%emt 0:01:57]} b6 {[%emt 0:01:57]} 5. Bd3 {[%emt 0:05:45]} Bb7 {[%emt 0:00:57]} 6. Nbd2 {[%emt 0:02:11]} Nd5 {[%emt 0:04:49]} 7. c3 {[%emt 0:19:35]} Nxf4 {[%emt 0:00:13]} 8. exf4 {[%emt 0:00:57]} f5 {[%emt 0:02:49]} 9. Ne5 {[%emt 0:08:56]} g6 {[%emt 0:02:52]} 10. Rg1 {[%emt 0:07:49]} c5 {[%emt 0:05:47]} 11. g4 {[%emt 0:04:44]} d6 {[%emt 0:04:33]} 12. Bb5+ {[%emt 0:03:09]} Kf8 {[%emt 0:01:40]} 13. Nef3 {[%emt 0:08:10]} Ba6 {[%emt 0:03:51]} 14. Bxa6 {[%emt 0:05:25]} Nxa6 {[%emt 0:00:09]} 15. Qe2 {[%emt 0:00:51]} Nc7 {[%emt 0:01:04]} 16. Qf1 {[%emt 0:08:29]} Bf6 {[%emt 0:06:57]} 17. g5 {[%emt 0:10:08]} Bg7 {[%emt 0:00:35]} 18. Qg2 {[%emt 0:00:41]} Nd5 {[%emt 0:02:42]} 19. Qg3 {[%emt 0:02:09]} Qd7 {[%emt 0:00:52]} 20. b3 {[%emt 0:07:16]} Rc8 {[%emt 0:03:42]} 21. Nh4 {[%emt 0:01:07]} cxd4 {[%emt 0:01:11]} 22. c4 {[%emt 0:00:32]} Nb4 {[%emt 0:04:21]} 23. Kf1 {[%emt 0:00:28]} e5 {[%emt 0:02:16]} 24. fxe5 {[%emt 0:00:31]} dxe5 {[%emt 0:00:34]} 25. a3 {[%emt 0:00:27]} Nc2 {[%emt 0:01:03]} 26. Ra2 {[%emt 0:00:32]} d3 {[%emt 0:01:09]} 27. Kg2 {[%emt 0:00:29]} e4 {[%emt 0:01:13]} 28. Kh1 {[%emt 0:00:30]} Qd4 {[%emt 0:01:29]} 29. Qf4 {[%emt 0:00:34]} Be5 {[%emt 0:00:27]} 30. Nhf3 {[%emt 0:00:29]} Bxf4 {[%emt 0:00:44]} 31. Nxd4 {[%emt 0:00:20]} Nxd4 {[%emt 0:00:11]} 32. Rd1 {[%emt 0:00:34]} Bxd2 {[%emt 0:01:02]} 33. Raxd2 {[%emt 0:00:15]} Nxb3 {[%emt 0:00:11]} 34. Rb2 {[%emt 0:00:34]} Nd4 {[%emt 0:00:32]} 35. Rc1 {[%emt 0:00:30]} Nc2 {[%emt 0:00:31]} 0-1

[Event "WALTON 40th BAN-ch U20 Girls 2022"]
[Site "Dhaka"]
[Date "2022.02.18"]
[Round "4.5"]
[White "Israt, Jahan Diba"]
[Black "Shimon, Ahmed"]
[Result "1-0"]
[ECO "B45"]
[WhiteElo "1697"]
[BlackElo "1203"]
[Annotator "NA RC"]
[PlyCount "51"]
[EventDate "2022.02.15"]
[EventType "swiss"]
[EventCountry "BAN"]
[SourceTitle "playchess.com"]
[Source "ChessBase"]
[SourceQuality "1"]
[TimeControl "5400+30"]

1. e4 {[%emt 0:00:02]} c5 {[%emt 0:00:17]} 2. Nf3 {[%emt 0:00:10]} Nc6 {[%emt 0:00:14]} 3. d4 {[%emt 0:00:12]} cxd4 {[%emt 0:00:15]} 4. Nxd4 {[%emt 0:00:10]} e6 {[%emt 0:00:12]} 5. Nc3 {[%emt 0:00:26]} Bc5 {[%emt 0:00:33]} 6. Be3 {[%emt 0:05:21]} Bb6 {[%emt 0:02:33]} 7. Ncb5 {[%emt 0:03:20]} d5 {[%emt 0:02:00]} 8. Bd3 {[%emt 0:14:13]} a6 {[%emt 0:01:23]} 9. Nxc6 {[%emt 0:01:17]} bxc6 {[%emt 0:00:38]} 10. Bxb6 {[%emt 0:02:13]} Qxb6 {[%emt 0:00:14]} 11. Nd6+ {[%emt 0:00:53]} Ke7 {[%emt 0:00:09]} 12. Nxc8+ {[%emt 0:01:04]} Rxc8 {[%emt 0:00:09]} 13. exd5 {[%emt 0:03:00]} cxd5 {[%emt 0:00:51]} 14. b3 {[%emt 0:02:34]} Nf6 {[%emt 0:01:07]} 15. O-O {[%emt 0:00:44]} h6 {[%emt 0:00:28]} 16. Qe2 {[%emt 0:00:47]} a5 {[%emt 0:00:16]} 17. Kh1 {[%emt 0:01:37]} Rc5 {[%emt 0:02:25]} 18. f4 {[%emt 0:01:53]} Re8 {[%emt 0:01:36]} 19. Rae1 {[%emt 0:03:17]} Nd7 {[%emt 0:00:23]} 20. Qg4 {[%emt 0:02:08]} Kf8 {[%emt 0:01:45]} 21. Qf3 {[%emt 0:06:06]} e5 {[%emt 0:01:16]} 22. fxe5 {[%emt 0:00:32]} Nxe5 {[%emt 0:00:30]} 23. Rxe5 {[%emt 0:00:22]} Qc7 {[%emt 0:01:23]} 24. Rxe8+ {[%emt 0:01:07]} Kxe8 {[%emt 0:00:04]} 25. Qe3+ {[%emt 0:00:20]} Kf8 {[%emt 0:00:07]} 26. Bg6 {[%emt 0:00:41]} 1-0

[Event "WALTON 40th BAN-ch U20 Girls 2022"]
[Site "Dhaka"]
[Date "2022.02.19"]
[Round "5.1"]
[White "Ahmed, Walijah"]
[Black "Jannatul, Ferdous"]
[Result "1-0"]
[ECO "A13"]
[WhiteElo "1953"]
[BlackElo "1852"]
[Annotator "ChessBase"]
[PlyCount "65"]
[EventDate "2022.02.15"]
[EventType "swiss"]
[EventCountry "BAN"]
[SourceTitle "playchess.com"]
[Source "ChessBase"]
[SourceQuality "1"]
[TimeControl "5400+30"]

1. c4 {[%emt 0:00:16]} e6 {[%emt 0:00:22]} 2. b3 {[%emt 0:00:11]} d5 {[%emt 0:00:18]} 3. Bb2 {[%emt 0:00:16]} Nf6 {[%emt 0:00:36]} 4. Nf3 {[%emt 0:00:23]} b6 {[%emt 0:01:38]} 5. e3 {[%emt 0:01:34]} Bb7 {[%emt 0:00:45]} 6. Be2 {[%emt 0:00:56]} Be7 {[%emt 0:00:48]} 7. O-O {[%emt 0:00:45]} O-O {[%emt 0:00:04]} 8. d4 {[%emt 0:00:37]} Ne4 {[%emt 0:09:01]} 9. Nbd2 {[%emt 0:10:00]} Nd7 {[%emt 0:03:41]} 10. Ne5 {[%emt 0:09:23]} Nxe5 {[%emt 0:10:13]} 11. dxe5 {[%emt 0:00:26]} Nxd2 {[%emt 0:00:14]} 12. Qxd2 {[%emt 0:00:10]} dxc4 {[%emt 0:00:08]} 13. Qxd8 {[%emt 0:02:09]} Rfxd8 {[%emt 0:00:25]} 14. Bxc4 {[%emt 0:00:16]} a6 {[%emt 0:05:04]} 15. Rfd1 {[%emt 0:12:29]} Kf8 {[%emt 0:09:47]} 16. Kf1 {[%emt 0:13:02]} Ke8 {[%emt 0:03:06]} 17. f3 {[%emt 0:03:07]} Rxd1+ {[%emt 0:01:56]} 18. Rxd1 {[%emt 0:02:01]} Rd8 {[%emt 0:00:06]} 19. Rxd8+ {[%emt 0:01:33]} Kxd8 {[%emt 0:00:09]} 20. Ke2 {[%emt 0:01:27]} Kd7 {[%emt 0:07:05]} 21. g4 {[%emt 0:02:13]} h6 {[%emt 0:20:25]} 22. f4 {[%emt 0:04:55]} c5 {[%emt 0:11:00]} 23. f5 {[%emt 0:05:15]} b5 {[%emt 0:02:04]} 24. Bd3 {[%emt 0:01:27]} exf5 {[%emt 0:01:46]} 25. gxf5 {[%emt 0:08:11]} Bg5 {[%emt 0:05:38]} 26. Ba3 {[%emt 0:01:55]} Be7 {[%emt 0:00:20]} 27. Bb2 {[%emt 0:00:29]} Bg5 {[%emt 0:00:05]} 28. Bc3 {[%emt 0:00:18]} Ke7 {[%emt 0:03:53]} 29. Ba5 {[%emt 0:01:40]} Kd7 {[%emt 0:00:15]} 30. Be1 {[%emt 0:00:52]} Ke7 {[%emt 0:00:40]} 31. h4 {[%emt 0:00:10]} c4 {[%emt 0:03:43]} 32. bxc4 {[%emt 0:00:17]} bxc4 {[%emt 0:00:23]} 33. Bxc4 {[%emt 0:00:12]} 1-0

[Event "WALTON 40th BAN-ch U20 Girls 2022"]
[Site "Dhaka"]
[Date "2022.02.19"]
[Round "5.2"]
[White "Omnia Binta Yusuf, Lubaba"]
[Black "Kazi Zarin, Tasnim"]
[Result "0-1"]
[ECO "C47"]
[WhiteElo "1578"]
[BlackElo "1801"]
[Annotator "NA"]
[PlyCount "94"]
[EventDate "2022.02.15"]
[EventType "swiss"]
[EventCountry "BAN"]
[SourceTitle "playchess.com"]
[Source "ChessBase"]
[SourceQuality "1"]
[TimeControl "5400+30"]

1. e4 {[%emt 0:00:06]} e5 {[%emt 0:04:05]} 2. Nf3 {[%emt 0:00:21]} Nc6 {[%emt 0:00:13]} 3. d4 {[%emt 0:00:06]} exd4 {[%emt 0:00:05]} 4. Nxd4 {[%emt 0:00:06]} Nf6 {[%emt 0:00:03]} 5. Nc3 {[%emt 0:00:06]} Bb4 {[%emt 0:00:05]} 6. Nxc6 {[%emt 0:00:17]} bxc6 {[%emt 0:00:02]} 7. Bd3 {[%emt 0:00:10]} d5 {[%emt 0:00:03]} 8. exd5 {[%emt 0:00:19]} cxd5 {[%emt 0:00:06]} 9. O-O {[%emt 0:00:18]} O-O {[%emt 0:00:02]} 10. Qf3 {[%emt 0:00:34]} h6 {[%emt 0:01:31]} 11. a3 {[%emt 0:06:54]} Be7 {[%emt 0:07:01]} 12. Re1 {[%emt 0:02:19]} Be6 {[%emt 0:00:39]} 13. Bxh6 {[%emt 0:05:38]} Bg4 $2 {[%emt 0:24:24]} (13... gxh6 $11 14. Qg3+ Kh8 15. Rxe6 fxe6) 14. Qg3 {[%emt 0:02:32]} ({Much less strong is} 14. Qe3 Re8 $18) ({Better is} 14. Qf4 $18 Bh5 15. Bg5) 14... gxh6 {[%emt 0:14:16] [#]} 15. h3 {[%emt 0:04:58]} ({Inferior is} 15. Nxd5 Qxd5 16. Rxe7 Qg5 $15) ({White should try} 15. Qe3 $1 {[%cal Re3h6]} Re8 16. Qxh6) 15... Bd6 {[%emt 0:05:52]} 16. f4 $1 {[%emt 0:02:26]} Kh8 {[%emt 0:04:10]} 17. hxg4 {[%emt 0:01:41]} Rg8 {[%emt 0:00:26]} 18. Bf5 {[%emt 0:01:30]} Qf8 {[%emt 0:04:01]} (18... c6 $16 19. Rad1 Ne8) 19. g5 $4 {[%emt 0:07:02] [#]} (19. Qh4 $18 {and all is fine.} Qg7 20. g5) 19... Nh5 $2 {[%emt 0:04:28]} (19... Rxg5 $1 $19 {[%mdl 512]} 20. Qd3 Bxf4) 20. Qh4 {[%emt 0:05:25]} Nxf4 {[%emt 0:02:19]} 21. gxh6 {[%emt 0:02:09]} Rxg2+ {[%emt 0:08:07]} 22. Kf1 $2 {[%emt 0:05:57] [#]} (22. Kh1 $11 {and White has nothing to worry.} f6 {[#]} 23. Nxd5 $1 {[%mdl 512]}) 22... f6 $1 {[%emt 0:00:23]} 23. Nxd5 {[%emt 0:05:59] [#]} Rg5 $1 {[%emt 0:00:09]} 24. Nxf4 {[%emt 0:06:24]} Bxf4 $4 {[%emt 0:05:24]} (24... Rxf5 $19 {and life is good for Black.} 25. Re4 Qg8) 25. Qxf4 {[%emt 0:02:12]} Qxh6 {[%emt 0:00:01]} 26. Qf3 $2 {[%emt 0:09:45]} (26. Bg4 $18) 26... Rag8 {[%emt 0:00:24]} 27. Ke2 {[%emt 0:13:35]} Rg2+ {[%emt 0:02:13]} 28. Kd3 {[%emt 0:00:47] [#]} R8g3 $19 {[%emt 0:00:02]} ({Weaker is} 28... R2g3 29. Re3 Rxf3 30. Rxf3) 29. Qxg3 {[%emt 0:07:16]} Rxg3+ {[%emt 0:00:02]} 30. Kc4 {[%emt 0:00:31]} Qf4+ {[%emt 0:00:38]} 31. Be4 {[%emt 0:00:29]} f5 {[%emt 0:00:29]} 32. Rad1 {[%emt 0:00:39]} fxe4 {[%emt 0:00:59]} 33. Rd8+ {[%emt 0:01:47]} Kg7 {[%emt 0:01:13]} 34. Rd7+ {[%emt 0:02:02]} Kg6 {[%emt 0:00:49]} 35. Red1 {[%emt 0:01:22]} e3+ {[%emt 0:13:16]} 36. R1d4 {[%emt 0:00:44]} Qf1+ {[%emt 0:00:00]} 37. Kc5 {[%emt 0:00:17]} e2 {[%emt 0:00:00]} 38. Rxc7 {[%emt 0:01:06]} Qf5+ {[%emt 0:00:00]} 39. Kc6 {[%emt 0:01:41]} e1=Q {[%emt 0:00:00]} 40. Rd6+ {[%emt 0:00:36]} Qee6 {[%emt 0:00:00]} 41. Rcd7 {[%emt 0:01:17]} Qxc2+ {[%emt 0:00:00]} 42. Kb7 {[%emt 0:00:21]} Qxb2+ {[%emt 0:00:00]} 43. Kxa7 {[%emt 0:00:12]} Qxa3+ {[%emt 0:00:00]} 44. Kb7 {[%emt 0:00:28]} Qexd6 {[%emt 0:00:00]} 45. Rxd6+ {[%emt 0:01:23]} Qxd6 {[%emt 0:00:00]} 46. Kc8 {[%emt 0:00:20]} Rc3+ {[%emt 0:00:00]} 47. Kb7 {[%emt 0:00:11]} Qb4+ {[%emt 0:00:00]} 0-1